fUST/lending_fUST_20260301
["ID","MTS","AMOUNT","RATE_DAILY","PERIOD"]
[406963272,1772363438504,-501.06023836,0.00013273,2]
[406963274,1772363438513,-500.60473202,0.00013273,2]
[406963276,1772363438523,-500.8634171,0.00013273,2]
[406963278,1772363438532,-500.16398129,0.00013273,2]
[406963280,1772363438541,-500.0,0.00013273,2]
[406963282,1772363438550,-219.38919347,0.00013273,2]
[406963284,1772363438560,-265.96417629,0.00013273,2]
[406963286,1772363438569,-501.77880559,0.00013273,2]
[406963288,1772363438579,-500.67279589,0.00013273,2]
[406963290,1772363438587,-500.0,0.00013273,2]
[406963292,1772363438596,-493.88006899,0.00013273,2]
[406963294,1772363438607,-500.0,0.00013273,2]
[406963296,1772363438616,-168.62490368,0.00013273,2]
[406963298,1772363438626,-500.0,0.00013273,2]
[406963300,1772363438635,-501.49808674,0.00013273,2]
[406963302,1772363438644,-166.64028932,0.00013273,2]
[406963303,1772363438654,-498.72903845,0.00013273,2]
[406963305,1772363438664,-501.40860658,0.00013273,2]
[406963308,1772363438677,-500.0,0.00013273,2]
[406963310,1772363438687,-233.98855861,0.00013273,2]
[406963312,1772363438696,-500.24489516,0.00013273,2]
[406963314,1772363438705,-500.0,0.00013273,2]
[406963316,1772363438715,-510.55825949,0.00013273,2]
[406963318,1772363438725,-500.0,0.00013273,2]
[406963320,1772363438734,-501.66631084,0.00013273,2]
[406963322,1772363438744,-500.0,0.00013273,2]
[406963324,1772363438754,-177.0,0.00015172,2]
[406963326,1772363438763,-221.34134913,0.00015425,2]
[406963328,1772363438772,-204.0,0.00017172,2]
[406963330,1772363438782,-441.6910379,0.00017453,2]
[406963332,1772363438791,-3400.0,0.00018,2]
[406963334,1772363438801,-151.0,0.00018057,2]
[406963336,1772363438810,-2182.0,0.00018193,2]
[406963338,1772363438820,-637.0,0.00018193,2]
[406963340,1772363438830,-151.0,0.00018381,2]
[406963342,1772363438839,-391.0,0.0001852,2]
[406963344,1772363438852,-830.61242177,0.00018657,2]
[406963346,1772363438861,-151.0,0.00018705,2]
[406963348,1772363438871,-1010.66313796,0.00018777,2]
[406963350,1772363438883,-1860.62967534,0.00018796,2]
[406963352,1772363438892,-293.85068442,0.00018821,30]
[406963354,1772363438902,-500.0,0.00018821,30]
[406963356,1772363438911,-201.57974992,0.00018877,2]
[406963358,1772363438922,-500.0,0.00018877,2]
[406963360,1772363438932,-166.48456558,0.00018877,2]
[406963362,1772363438941,-500.0,0.00018877,2]
[406963364,1772363438951,-500.0,0.00018877,2]
[406963366,1772363438960,-500.0,0.00018877,2]
[406963368,1772363438970,-500.0,0.00018877,2]
[406963370,1772363438979,-500.0,0.00018877,2]
[406963372,1772363438988,-500.0,0.00018877,2]
[406963374,1772363438998,-500.0,0.00018877,2]
[406963376,1772363439010,-500.0,0.00018877,2]
[406963378,1772363439019,-500.0,0.00018877,2]
[406963380,1772363439029,-500.0,0.00018877,2]
[406963382,1772363439038,-500.0,0.00018877,2]
[406963384,1772363439048,-500.0,0.00018877,2]
[406963386,1772363439057,-500.0,0.00018877,2]
[406963388,1772363439066,-500.0,0.00018877,2]
[406963390,1772363439076,-500.0,0.00018877,2]
[406963393,1772363439086,-147.56312184,0.00018877,2]
[406963395,1772363439099,-352.43687816,0.00018877,2]
[406963397,1772363439108,-500.0,0.00018877,2]
[406963399,1772363439118,-500.0,0.00018877,2]
[406963401,1772363439127,-508.25599056,0.00018877,2]
[406963403,1772363439137,-500.0,0.00018877,2]
[406963405,1772363439146,-500.0,0.00018877,2]
[406963407,1772363439155,-500.0,0.00018877,2]
[406963409,1772363439165,-500.0,0.00018877,2]
[406963411,1772363439175,-500.0,0.00018877,2]
[406963413,1772363439184,-500.0,0.00018877,2]
[406963415,1772363439193,-500.0,0.00018877,2]
[406963416,1772363439203,-529.64379001,0.00018877,2]
[406963417,1772363439212,-500.0,0.00018877,2]
[406963418,1772363439221,-500.0,0.00018877,2]
[406963419,1772363439230,-500.0,0.00018877,2]
[406963420,1772363439239,-500.0,0.00018877,2]
[406963421,1772363439249,-500.0,0.00018877,2]
[406963422,1772363439258,-500.0,0.00018877,2]
[406963423,1772363439267,-500.0,0.00018877,2]
[406963424,1772363439277,-500.0,0.00018877,2]
[406963425,1772363439286,-500.0,0.00018877,2]
[406963426,1772363439295,-500.0,0.00018877,2]
[406963427,1772363439304,-500.0,0.00018877,2]
[406963428,1772363439314,-500.0,0.00018877,2]
[406963429,1772363439323,-500.0,0.00018877,2]
[406963431,1772363439332,-500.0,0.00018877,2]
[406963433,1772363439342,-500.0,0.00018877,2]
[406963435,1772363439353,-500.0,0.00018877,2]
[406963437,1772363439363,-500.0,0.00018877,2]
[406963439,1772363439372,-500.0,0.00018877,2]
[406963441,1772363439382,-500.0,0.00018877,2]
[406963443,1772363439391,-500.0,0.00018877,2]
[406963445,1772363439400,-500.0,0.00018877,2]
[406963447,1772363439410,-500.0,0.00018877,2]
[406963449,1772363439419,-500.0,0.00018877,2]
[406963451,1772363439429,-500.0,0.00018877,2]
[406963453,1772363439439,-500.0,0.00018877,2]
[406963455,1772363439448,-500.0,0.00018877,2]
[406963457,1772363439457,-500.0,0.00018877,2]
[406963459,1772363439467,-500.0,0.00018877,2]
[406963461,1772363439477,-500.0,0.00018877,2]
[406963463,1772363439487,-500.0,0.00018877,2]
[406963465,1772363439496,-500.0,0.00018877,2]
[406963467,1772363439506,-500.0,0.00018877,2]
[406963469,1772363439515,-500.0,0.00018877,2]
[406963471,1772363439525,-500.0,0.00018877,2]
[406963473,1772363439535,-500.0,0.00018877,2]
[406963475,1772363439544,-500.0,0.00018877,2]
[406963477,1772363439553,-200.00000001,0.00018877,2]
[406963479,1772363439563,-500.0,0.00018877,2]
[406963481,1772363439574,-500.0,0.00018877,2]
[406963484,1772363439583,-500.0,0.00018877,2]
[406963486,1772363439593,-500.0,0.00018877,2]
[406963488,1772363439608,-500.0,0.00018877,2]
[406963490,1772363439622,-500.0,0.00018877,2]
[406963492,1772363439632,-500.0,0.00018877,2]
[406963494,1772363439641,-500.0,0.00018877,2]
[406963496,1772363439651,-500.0,0.00018877,2]
[406963498,1772363439662,-500.0,0.00018877,2]
[406963500,1772363439672,-500.0,0.00018877,2]
[406963502,1772363439682,-500.0,0.00018877,2]
[406963504,1772363439691,-500.0,0.00018877,2]
[406963506,1772363439701,-500.0,0.00018877,2]
[406963509,1772363439711,-500.0,0.00018877,2]
[406963511,1772363439720,-500.0,0.00018877,2]
[406963513,1772363439730,-500.0,0.00018877,2]
[406963515,1772363439739,-500.0,0.00018877,2]
[406963517,1772363439748,-500.0,0.00018877,2]
[406963519,1772363439758,-500.0,0.00018877,2]
[406963521,1772363439766,-500.0,0.00018877,2]
[406963523,1772363439776,-500.0,0.00018877,2]
[406963525,1772363439786,-500.0,0.00018877,2]
[406963527,1772363439795,-500.0,0.00018877,2]
[406963529,1772363439804,-500.0,0.00018877,2]
[406963531,1772363439814,-500.0,0.00018877,2]
[406963533,1772363439824,-500.0,0.00018877,2]
[406963570,1772363440156,-500.0,0.00018877,2]
[406963572,1772363440166,-500.0,0.00018877,2]
[406963574,1772363440175,-500.0,0.00018877,2]
[406963576,1772363440185,-500.0,0.00018877,2]
[406963578,1772363440194,-500.0,0.00018877,2]
[406963580,1772363440203,-500.0,0.00018877,2]
[406963582,1772363440213,-627.319945,0.00018877,2]
[406963584,1772363440222,-500.0,0.00018877,2]
[406963586,1772363440231,-399.14,0.000189,2]
[406963588,1772363440240,-1010.66313793,0.00018962,2]
[406963590,1772363440249,-187.78006525,0.00018965,2]
[406963592,1772363440262,-194.72792766,0.00018965,2]
[406963594,1772363440271,-201.93286099,0.00018965,2]
[406963596,1772363440280,-209.40437684,0.00018965,2]
[406963598,1772363440289,-217.15233878,0.00018965,2]
[406963600,1772363440298,-225.18697532,0.00018965,2]
[406963602,1772363440307,-500.0,0.00018965,2]
[406963604,1772363440316,-233.51889341,0.00018965,2]
[406963606,1772363440325,-242.15909246,0.00018965,2]
[406963608,1772363440334,-251.11897888,0.00018965,2]
[406963610,1772363440343,-260.4103811,0.00018965,2]
[406963612,1772363440352,-270.0455652,0.00018965,2]
[406963614,1772363440361,-287.13840533,0.00018965,2]
[406963615,1772363440370,-668.65185756,0.00018965,2]
[406963617,1772363440380,-500.0,0.00018965,2]
[406963619,1772363440390,-157.077114,0.00018988,2]
[406963620,1772363440398,-579.01605346,0.00018988,2]
[406963622,1772363440407,-151.0,0.00018989,2]
[406963624,1772363440416,-151.0,0.00018989,2]
[406963626,1772363440424,-151.0,0.00018989,2]
[406963627,1772363440434,-169.907978,0.00018989,2]
[406963629,1772363440443,-500.0,0.00018989,2]
[406963631,1772363440453,-266.60923659,0.00018989,2]
[406963632,1772363440462,-11025.57902127,0.0001899,2]
[406963665,1772363440836,-2000.38884425,0.0001899,2]
[406963679,1772363440994,-1177.93474205,0.0001899,2]
[406963681,1772363441007,-808.4544273,0.0001899,2]
[406963683,1772363441018,-20129.52466545,0.0001899,2]
[406963906,1772363443528,-1357.39668019,0.0001899,2]
[406963912,1772363443581,-8008.41106366,0.0001899,2]
[406963914,1772363443592,-1.07127889,0.0001899,2]
[406963916,1772363443602,-151.0,0.0001899,2]
[406963918,1772363443612,-3339.49451574,0.00019,2]
[406963921,1772363443626,-200.0,0.00019,2]
[406963923,1772363443636,-151.0,0.00019029,2]
[406963925,1772363443646,-716.0,0.0001904,2]
[406963927,1772363443656,-1010.66313793,0.00019146,2]
[406963929,1772363443665,-169.0,0.0001917,2]
[406963931,1772363443675,-200.85881742,0.00019172,2]
[406963933,1772363443687,-151.0,0.00019178,2]
[406963935,1772363443697,-29.4611284,0.00019178,2]
[406964035,1772363446505,-121.5388716,0.00019178,2]
[406964036,1772363446517,-151.0,0.00019178,2]
[406964037,1772363446526,-151.0,0.00019178,2]
[406964038,1772363446537,-151.0,0.00019178,2]
[406964039,1772363446548,-151.0,0.00019178,2]
[406964040,1772363446558,-151.0,0.00019178,2]
[406964041,1772363446567,-151.0,0.00019178,2]
[406964042,1772363446577,-151.0,0.00019178,2]
[406964043,1772363446587,-151.0,0.00019178,2]
[406964044,1772363446598,-151.0,0.00019178,2]
[406964045,1772363446608,-151.0,0.00019178,2]
[406964046,1772363446618,-151.0,0.00019178,2]
[406964047,1772363446627,-296.43126,0.00019178,2]
[406964048,1772363446637,-744.97886799,0.00019309,2]
[406964049,1772363446646,-1010.66313793,0.00019331,2]
[406964050,1772363446654,-151.0,0.00019352,2]
[406964051,1772363446663,-168.0,0.00019381,2]
[406964052,1772363446672,-2213.3515,0.00019439,2]
[406964053,1772363446681,-2213.3515,0.00019439,2]
[406964054,1772363446690,-2213.3515,0.00019439,2]
[406964055,1772363446698,-2213.3515,0.00019439,2]
[406964056,1772363446707,-2213.3515,0.00019439,2]
[406964057,1772363446717,-2213.3515,0.00019439,2]
[406964058,1772363446727,-2213.3515,0.00019439,2]
[406964059,1772363446736,-2213.3515,0.00019439,2]
[406964060,1772363446746,-2213.3515,0.00019439,2]
[406964061,1772363446755,-2153.57240447,0.00019439,2]
[406964241,1772364637799,-4058.96658349,0.00017504,2]
[406964575,1772364645393,-599.58935309,0.00017504,2]
[406964577,1772364645403,-68.27052691,0.00017681,2]
[406964579,1772364645415,-4931.72947309,0.00017681,2]
[406964582,1772364645425,-203.66930632,0.0001786,50]
[406964583,1772364645436,-183.72692911,0.0001786,2]
[406964586,1772364645446,-1352.99074198,0.00018041,2]
[406964614,1772364645708,-3647.00925802,0.00018041,2]
[406964617,1772364645718,-4176.43596119,0.00018041,2]
[406964622,1772364645761,-823.56403881,0.00018041,2]
[406964624,1772364645771,-5000.0,0.00018041,2]
[406964626,1772364645780,-2540.49407174,0.00018041,2]
[406964934,1772365766958,1000.0,0.0001001,2]
[406964956,1772365831640,-373.49922515,0.00017308,2]
[406964958,1772365831650,-162.14220664,0.00017547,2]
[406964960,1772365831659,-66.02070265,0.00017663,2]
[406964963,1772365831671,-110.54434208,0.00017663,2]
[406964964,1772365831680,-176.56504473,0.00017663,2]
[406964966,1772365831690,-204.762859,0.0001795,2]
[406964969,1772365831699,-2459.50592826,0.00018041,2]
[406964972,1772365831708,-403.0,0.000182,2]
[406964974,1772365831717,-141.64198274,0.00018379,2]
[406964979,1772365831733,-570.35801726,0.00018379,2]
[406964982,1772365831742,-816.95110482,0.00018622,2]
[406964985,1772365831751,-202.13262761,0.00018622,2]
[406964987,1772365831760,-724.79391844,0.00018669,2]
[406965403,1772365844707,-859.67440316,0.00018669,2]
[406965404,1772365844716,-11707.59169633,0.00018669,2]
[406965416,1772365845814,-7141.08038724,0.00018669,2]
[406965418,1772366519853,-161.70610208,0.00018567,2]
[406965419,1772366519914,-1569.59381549,0.00018568,2]
[406965420,1772366549251,-161.70610208,0.00018568,2]
[406965423,1772366802298,3269.64,0.000158,120]
[406965424,1772367007367,212.86,9.5e-05,2]
[406965447,1772367031789,-212.86,0.000105,2]
[406965448,1772367031800,-782.10722471,0.00018268,2]
[406965449,1772367031809,-2193.00601965,0.00018368,2]
[406965450,1772367031819,-161.70610206,0.00018554,2]
[406965451,1772367031829,-714.8322167,0.00018557,2]
[406965452,1772367031839,-250.0,0.00018594,2]
[406965454,1772367031848,-500.0,0.00018645,2]
[406965455,1772367031858,-580.05345226,0.00018645,2]
[406965456,1772367031867,-500.0,0.00018645,2]
[406965457,1772367031877,-187.78006525,0.00018645,2]
[406965458,1772367031886,-194.72792766,0.00018645,2]
[406965459,1772367031896,-201.93286099,0.00018645,2]
[406965460,1772367031906,-209.40437684,0.00018645,2]
[406965461,1772367031919,-259.40847779,0.00018645,2]
[406965463,1772367031928,-250.0,0.00018645,2]
[406965465,1772367031938,-1840.39488815,0.00018653,2]
[406965497,1772367037988,-500.0,0.00018652,2]
[406965499,1772367037997,-278.77018991,0.00018652,2]
[406965501,1772367038007,-550.03513971,0.00018652,2]
[406965503,1772367038017,-500.0,0.00018652,2]
[406965504,1772367038026,-500.0,0.00018652,2]
[406965507,1772367038036,-409.00334873,0.00018652,2]
[406965508,1772367038045,-500.0,0.00018652,2]
[406965510,1772367038054,-500.0,0.00018652,2]
[406965513,1772367038064,-500.0,0.00018652,2]
[406965515,1772367038074,-500.0,0.00018652,2]
[406965516,1772367038083,-500.0,0.00018652,2]
[406965519,1772367038093,-500.0,0.00018652,2]
[406965521,1772367038102,-500.0,0.00018652,2]
[406965523,1772367038112,-500.0,0.00018652,2]
[406965525,1772367038122,-500.0,0.00018652,2]
[406965527,1772367038131,-500.0,0.00018652,2]
[406965529,1772367038141,-500.0,0.00018652,2]
[406965531,1772367038150,-500.0,0.00018652,2]
[406965533,1772367038160,-500.0,0.00018652,2]
[406965535,1772367038170,-500.0,0.00018652,2]
[406965537,1772367038180,-553.89328369,0.00018652,2]
[406965539,1772367038189,-500.0,0.00018652,2]
[406965541,1772367038199,-500.0,0.00018652,2]
[406965543,1772367038208,-500.0,0.00018652,2]
[406965545,1772367038217,-170.928758,0.00018652,2]
[406965547,1772367038226,-500.0,0.00018652,2]
[406965548,1772367038235,-500.0,0.00018652,2]
[406965550,1772367038245,-500.0,0.00018652,2]
[406965552,1772367038255,-500.0,0.00018652,2]
[406965555,1772367038265,-500.0,0.00018652,2]
[406965557,1772367038275,-500.0,0.00018652,2]
[406965558,1772367038284,-500.0,0.00018652,2]
[406965561,1772367038294,-500.0,0.00018652,2]
[406965563,1772367038303,-500.0,0.00018652,2]
[406965564,1772367038312,-500.0,0.00018652,2]
[406965567,1772367038322,-500.0,0.00018652,2]
[406965568,1772367038331,-500.0,0.00018652,2]
[406965571,1772367038341,-500.0,0.00018652,2]
[406965573,1772367038350,-500.0,0.00018652,2]
[406965574,1772367038360,-99.28290706,0.00018652,2]
[406965577,1772367038372,-400.71709294,0.00018652,2]
[406965579,1772367038381,-500.0,0.00018652,2]
[406965581,1772367038391,-500.0,0.00018652,2]
[406965583,1772367038400,-500.0,0.00018652,2]
[406965585,1772367038409,-500.0,0.00018652,2]
[406965587,1772367038419,-500.0,0.00018652,2]
[406965589,1772367038428,-500.0,0.00018652,2]
[406965591,1772367038438,-500.0,0.00018652,2]
[406965593,1772367038447,-500.0,0.00018652,2]
[406965594,1772367038456,-194.99595851,0.00018652,2]
[406965595,1772367038465,-500.0,0.00018652,2]
[406965596,1772367038475,-500.0,0.00018652,2]
[406965597,1772367038484,-500.0,0.00018652,2]
[406965598,1772367038494,-500.0,0.00018652,2]
[406965617,1772367038504,-500.0,0.00018652,2]
[406965619,1772367038734,-500.0,0.00018652,2]
[406965621,1772367038744,-500.0,0.00018652,2]
[406965623,1772367038754,-500.0,0.00018652,2]
[406965625,1772367038763,-500.0,0.00018652,2]
[406965627,1772367038773,-500.0,0.00018652,2]
[406965629,1772367038783,-500.0,0.00018652,2]
[406965631,1772367038793,-500.0,0.00018652,2]
[406965634,1772367038802,-9.6496533,0.00018652,2]
[406965636,1772367038813,-490.3503467,0.00018652,2]
[406965638,1772367038822,-500.0,0.00018652,2]
[406965640,1772367038832,-500.0,0.00018652,2]
[406965642,1772367038841,-500.0,0.00018652,2]
[406965644,1772367038851,-320.58005306,0.00018652,2]
[406965646,1772367038860,-500.0,0.00018652,2]
[406965648,1772367038869,-56.59960024,0.00018652,2]
[406966020,1772367042989,-443.40039976,0.00018652,2]
[406966022,1772367042998,-96.71384256,0.00018652,2]
[406966052,1772367046032,-403.28615744,0.00018652,2]
[406966053,1772367046041,-11599.12138423,0.00018653,2]
[406966054,1772367046294,-11822.36685168,0.00018653,2]
[406966055,1772367046303,-151.0,0.00018668,2]
[406966056,1772367046312,-18460.76683143,0.00018669,2]
[406966057,1772367046320,-403.0,0.0001885,2]
[406966058,1772367046328,-568.0,0.00018856,5]
[406966059,1772367046338,-708.0,0.00018856,5]
[406966060,1772367046347,-1000.0,0.0001889,2]
[406966061,1772367046356,-1000.0,0.0001889,2]
[406966062,1772367046365,-1000.0,0.0001889,2]
[406966063,1772367046373,-1000.0,0.0001889,2]
[406966064,1772367046382,-1000.0,0.0001889,2]
[406966065,1772367046390,-1000.0,0.0001889,2]
[406966066,1772367046399,-246.572,0.0001889,2]
[406966067,1772367046407,-500.0,0.00018999,2]
[406966068,1772367046415,-215.38333513,0.00018999,2]
[406966069,1772367046422,-876.48573096,0.00019,120]
[406966070,1772367237939,90567.0,0.0001001,2]
[406966536,1772368246250,-2184.28097511,0.00017439,5]
[406966537,1772368246260,-162.0,0.0001852,2]
[406966538,1772368246270,-403.0,0.0001852,2]
[406966539,1772368246280,-7999.2543412,0.00018693,2]
[406966540,1772368246291,-163.0,0.0001884,2]
[406966541,1772368246301,-2283.23743999,0.00019,120]
[406966542,1772368388984,10000.0,0.0001001,2]
[406966543,1772368410729,10000.0,0.0001001,2]
[406966545,1772368429739,4311.6,0.0001001,2]
[406966548,1772368683199,189.43,8.991e-05,2]
[406966561,1772369432165,-652.60369059,0.00016381,2]
[406966562,1772369432175,-588.78124432,0.00016546,2]
[406966563,1772369432185,-602.77226994,0.00016598,2]
[406966564,1772369432195,-205.25911819,0.00017213,2]
[406966565,1772369432205,-1151.18832486,0.00017827,4]
[406966566,1772369432214,-204.7628597,0.00018189,2]
[406966567,1772369432223,-164.0,0.000183,2]
[406966568,1772369432233,-716.0,0.0001852,2]
[406966569,1772369432243,-166.0,0.000186,2]
[406966571,1772369432252,-165.59293987,0.000186,2]
[406966572,1772369432526,-746.60952618,0.00018738,2]
[406966962,1772369446479,-313.1967136,0.00018738,2]
[406966963,1772369446488,-123.15647044,0.00018778,4]
[406966964,1772370120118,-1019.65888694,0.00018595,2]
[406967040,1772370483683,284.52,8.991e-05,2]
[406967063,1772370632323,-318.11362847,0.00017998,2]
[406967074,1772370638480,-100.88637153,0.00017998,2]
[406967075,1772370638491,-254.95587603,0.00017998,2]
[406967224,1772370646894,-180.19,0.000158,2]
[406967225,1772370646904,-45.04412397,0.00017998,2]
[406967226,1772370646914,-500.0,0.00017999,2]
[406967227,1772370646923,-208.61966728,0.00017999,2]
[406967228,1772370646932,-312.47441102,0.00017999,2]
[406967267,1772370931176,170.0,0.0001001,2]
[406967275,1772371807986,153.68,9.5e-05,2]
[406967276,1772371808412,153.68,9.6e-05,2]
[406967277,1772371809080,153.68,9.6e-05,2]
[406967278,1772371809597,153.68,9.7e-05,2]
[406967279,1772371810299,153.68,9.7e-05,2]
[406967280,1772371811328,153.68,9.8e-05,2]
[406967281,1772371812984,153.68,9.9e-05,2]
[406967282,1772371813703,153.68,9.9e-05,2]
[406967283,1772371814374,153.68,0.0001,2]
[406967284,1772371815424,153.68,0.0001,2]
[406967323,1772371831694,-153.68,0.000101,2]
[406967325,1772371831706,-153.68,0.000102,2]
[406967327,1772371831715,-153.68,0.000102,2]
[406967329,1772371831725,-153.68,0.000103,2]
[406967331,1772371831734,-153.68,0.000103,2]
[406967333,1772371831743,-153.68,0.000104,2]
[406967335,1772371831752,-153.68,0.000105,2]
[406967337,1772371831762,-300.0,0.00013272,2]
[406967339,1772371831771,-300.0,0.00013272,2]
[406967341,1772371831780,-300.0,0.00013272,2]
[406967343,1772371831790,-1200.0,0.00013272,2]
[406967345,1772371831799,-150.0,0.00013272,2]
[406967347,1772371831808,-500.0,0.00013273,2]
[406967349,1772371831817,-505.86326619,0.00013273,2]
[406967351,1772371831826,-500.0,0.00013273,2]
[406967353,1772371831835,-2901.36080335,0.00013273,2]
[406967355,1772371831844,-119.39360442,0.00013273,2]
[406967407,1772371837753,-380.60639558,0.00013273,2]
[406967408,1772371837763,-325.53835913,0.00013273,2]
[406967409,1772371837773,-500.0,0.00013273,2]
[406967410,1772371837783,-258.86475844,0.00013273,2]
[406967411,1772371837794,-241.13524156,0.00013273,2]
[406967412,1772371837804,-500.0,0.00013273,2]
[406967413,1772371837813,-500.0,0.00013273,2]
[406967414,1772371837823,-151.0,0.00013273,2]
[406967415,1772371837833,-151.0,0.00013273,2]
[406967416,1772371837843,-150.0,0.00013426,2]
[406967417,1772371837853,-261.16339272,0.00013426,2]
[406967418,1772371837862,-170.88613618,0.00013426,2]
[406967419,1772371837872,-179.45833544,0.00013426,2]
[406967420,1772371837882,-1006.76483162,0.00013618,2]
[406967421,1772371837892,-500.0,0.00013697,2]
[406967422,1772371837903,-500.0,0.00013697,2]
[406967423,1772371837912,-168.54841,0.00013697,2]
[406967424,1772371837923,-331.45159,0.00013697,2]
[406967425,1772371837934,-500.0,0.00013697,2]
[406967426,1772371837944,-500.0,0.00013697,2]
[406967427,1772371837954,-500.0,0.00013697,2]
[406967428,1772371837964,-500.0,0.00013697,2]
[406967429,1772371837974,-263.84380988,0.00013697,2]
[406967430,1772371837983,-500.0,0.00013697,2]
[406967431,1772371837993,-500.0,0.00013697,2]
[406967432,1772371838002,-500.0,0.00013697,2]
[406967433,1772371838012,-500.0,0.00013697,2]
[406967434,1772371838022,-500.0,0.00013697,2]
[406967435,1772371838031,-500.0,0.00013697,2]
[406967436,1772371838041,-500.0,0.00013697,2]
[406967437,1772371838051,-500.0,0.00013697,2]
[406967438,1772371838061,-500.0,0.00013697,2]
[406967439,1772371838071,-500.0,0.00013697,2]
[406967440,1772371838080,-500.0,0.00013697,2]
[406967441,1772371838088,-500.0,0.00013697,2]
[406967442,1772371838097,-500.0,0.00013697,2]
[406967443,1772371838107,-500.0,0.00013697,2]
[406967444,1772371838118,-455.50756293,0.00013697,2]
[406967445,1772371838127,-500.0,0.00013697,2]
[406967446,1772371838137,-417.0928758,0.00013697,2]
[406967447,1772371838147,-500.0,0.00013697,2]
[406967448,1772371838156,-500.0,0.00013697,2]
[406967449,1772371838167,-500.0,0.00013697,2]
[406967450,1772371838176,-500.0,0.00013697,2]
[406967451,1772371838186,-500.0,0.00013697,2]
[406967452,1772371838196,-500.0,0.00013697,2]
[406967453,1772371838207,-319.49959585,0.00013697,2]
[406967454,1772371838217,-500.0,0.00013697,2]
[406967455,1772371838227,-500.0,0.00013697,2]
[406967456,1772371838238,-500.0,0.00013697,2]
[406967457,1772371838248,-500.0,0.00013697,2]
[406967458,1772371838259,-500.0,0.00013697,2]
[406967459,1772371838270,-500.0,0.00013697,2]
[406967460,1772371838281,-500.0,0.00013697,2]
[406967461,1772371838291,-500.0,0.00013697,2]
[406967462,1772371838302,-500.0,0.00013697,2]
[406967463,1772371838312,-500.0,0.00013697,2]
[406967464,1772371838322,-500.0,0.00013697,2]
[406967465,1772371838332,-500.0,0.00013697,2]
[406967466,1772371838342,-500.0,0.00013697,2]
[406967467,1772371838352,-500.0,0.00013697,2]
[406967468,1772371838362,-500.0,0.00013697,2]
[406967469,1772371838372,-500.0,0.00013697,2]
[406967470,1772371838383,-500.0,0.00013697,2]
[406967471,1772371838396,-500.0,0.00013697,2]
[406967472,1772371838406,-500.0,0.00013697,2]
[406967473,1772371838420,-500.0,0.00013697,2]
[406967474,1772371838430,-500.0,0.00013697,2]
[406967475,1772371838441,-500.0,0.00013697,2]
[406967476,1772371838453,-198.42012035,0.00013697,2]
[406967477,1772371838463,-500.0,0.00013697,2]
[406967478,1772371838473,-500.0,0.00013697,2]
[406967479,1772371838484,-500.0,0.00013697,2]
[406967480,1772371838495,-500.0,0.00013697,2]
[406967481,1772371838507,-500.0,0.00013697,2]
[406967482,1772371838517,-151.0,0.00013699,2]
[406967483,1772371838530,-151.0,0.00013699,2]
[406967484,1772371838540,-263.51561455,0.00013699,2]
[406967485,1772371838549,-500.0,0.00013699,2]
[406967486,1772371838559,-500.0,0.00013699,2]
[406967487,1772371838568,-488.17223399,0.00013699,2]
[406967488,1772371838577,-501.12540436,0.00013699,2]
[406967489,1772371838589,-500.0,0.00013699,2]